[Event "*** Titled Tuesday Blitz"]
[Site "Chess.com"]
[Date "2021.04.27"]
[Round "1"]
[White "Stormeman100100"]
[Black "jraosam"]
[Result "1-0"]
[WhiteElo "2481"]
[BlackElo "1847"]
[TimeControl "180+1"]
[EndTime "10:06:33 PDT"]
[Termination "Stormeman100100 won on time"]

1. e4 {[%clk 0:02:59.2]} 1... c5 {[%clk 0:02:57.4]} 2. Nf3 {[%clk 0:02:59]} 2...
d6 {[%clk 0:02:56.8]} 3. d4 {[%clk 0:02:59.5]} 3... cxd4 {[%clk 0:02:56.9]} 4.
Nxd4 {[%clk 0:03:00.4]} 4... Nf6 {[%clk 0:02:55.6]} 5. Nc3 {[%clk 0:03:01]} 5...
g6 {[%clk 0:02:55.7]} 6. f3 {[%clk 0:02:56.4]} 6... Bg7 {[%clk 0:02:55.4]} 7.
Be3 {[%clk 0:02:57]} 7... Nc6 {[%clk 0:02:55.3]} 8. Qd2 {[%clk 0:02:57.6]} 8...
Bd7 {[%clk 0:02:55.5]} 9. O-O-O {[%clk 0:02:57.7]} 9... a6 {[%clk 0:02:55.1]}
10. h4 {[%clk 0:02:57]} 10... h5 {[%clk 0:02:52.1]} 11. Nxc6 {[%clk 0:02:48]}
11... bxc6 {[%clk 0:02:49.3]} 12. Bc4 {[%clk 0:02:47.6]} 12... Rb8 {[%clk
0:02:44.8]} 13. Bg5 {[%clk 0:02:41.8]} 13... Qa5 {[%clk 0:02:43.4]} 14. Bb3
{[%clk 0:02:34.6]} 14... Be6 {[%clk 0:02:19.1]} 15. Kb1 {[%clk 0:02:17.6]} 15...
c5 {[%clk 0:01:59]} 16. Bxf6 {[%clk 0:02:05.3]} 16... Bxf6 {[%clk 0:00:47.3]}
17. Nd5 {[%clk 0:02:04]} 17... Qxd2 {[%clk 0:00:38.3]} 18. Nxf6+ {[%clk
0:02:03.5]} 18... exf6 {[%clk 0:00:39.2]} 19. Rxd2 {[%clk 0:02:04.1]} 19... c4
{[%clk 0:00:37.5]} 20. Ba4+ {[%clk 0:02:01.5]} 20... Ke7 {[%clk 0:00:37.7]} 21.
c3 {[%clk 0:02:01.6]} 21... f5 {[%clk 0:00:35.1]} 22. exf5 {[%clk 0:01:56.3]}
22... Bxf5+ {[%clk 0:00:35]} 23. Bc2 {[%clk 0:01:57.2]} 23... Bxc2+ {[%clk
0:00:26.9]} 24. Kxc2 {[%clk 0:01:58.1]} 24... Rb5 {[%clk 0:00:21.7]} 25. Re1+
{[%clk 0:01:55.7]} 25... Kd7 {[%clk 0:00:20.5]} 26. Re4 {[%clk 0:01:46.6]} 26...
d5 {[%clk 0:00:15.3]} 27. Rxc4 {[%clk 0:01:44.2]} 27... Rhb8 {[%clk 0:00:14.8]}
28. Rb4 {[%clk 0:01:43.2]} 28... Rxb4 {[%clk 0:00:13.1]} 29. cxb4 {[%clk
0:01:44.1]} 29... Rxb4 {[%clk 0:00:12.6]} 30. Rxd5+ {[%clk 0:01:43.8]} 30... Ke6
{[%clk 0:00:11.6]} 31. Ra5 {[%clk 0:01:43.7]} 31... Rxh4 {[%clk 0:00:07.1]} 32.
Rxa6+ {[%clk 0:01:43.7]} 32... Kd5 {[%clk 0:00:07.3]} 33. a4 {[%clk 0:01:42.6]}
33... Rh2 {[%clk 0:00:06.9]} 34. Rf6 {[%clk 0:01:38.6]} 34... Rxg2+ {[%clk
0:00:07.8]} 35. Kc3 {[%clk 0:01:39]} 35... h4 {[%clk 0:00:07.9]} 36. Rxf7 {[%clk
0:01:38.8]} 36... h3 {[%clk 0:00:04.3]} 37. Rh7 {[%clk 0:01:39.2]} 37... h2
{[%clk 0:00:04.7]} 38. b4 {[%clk 0:01:39.4]} 38... Ke5 {[%clk 0:00:03.5]} 39. a5
{[%clk 0:01:37.4]} 39... Kf4 {[%clk 0:00:03.8]} 40. b5 {[%clk 0:01:32.7]} 40...
Kg3 {[%clk 0:00:03.9]} 41. b6 {[%clk 0:01:31.2]} 41... Ra2 {[%clk 0:00:02.2]}
42. b7 {[%clk 0:01:30.5]} 42... Ra3+ {[%clk 0:00:02.3]} 43. Kb2 {[%clk
0:01:30.3]} 43... Rxa5 {[%clk 0:00:01.3]} 44. b8=Q+ {[%clk 0:01:30.4]} 44... Kg2
{[%clk 0:00:01.5]} 45. Qxh2+ {[%clk 0:01:30.4]} 1-0

[Event "*** Titled Tuesday Blitz"]
[Site "Chess.com"]
[Date "2021.04.27"]
[Round "1"]
[White "ural58"]
[Black "mishanick"]
[Result "0-1"]
[WhiteElo "2474"]
[BlackElo "3013"]
[TimeControl "180+1"]
[EndTime "10:06:35 PDT"]
[Termination "mishanick won by resignation"]

1. e4 {[%clk 0:02:52.3]} 1... c5 {[%clk 0:02:54]} 2. b3 {[%clk 0:02:51.8]} 2...
Nf6 {[%clk 0:02:52.9]} 3. e5 {[%clk 0:02:51.4]} 3... Nd5 {[%clk 0:02:53.5]} 4.
Nc3 {[%clk 0:02:51.8]} 4... Nc7 {[%clk 0:02:48.6]} 5. d4 {[%clk 0:02:50.7]} 5...
cxd4 {[%clk 0:02:48.3]} 6. Qxd4 {[%clk 0:02:51.6]} 6... Nc6 {[%clk 0:02:48.7]}
7. Qe3 {[%clk 0:02:49.8]} 7... g6 {[%clk 0:02:48.7]} 8. Bb2 {[%clk 0:02:49.6]}
8... Bg7 {[%clk 0:02:49.2]} 9. Nf3 {[%clk 0:02:48.8]} 9... Ne6 {[%clk
0:02:43.6]} 10. O-O-O {[%clk 0:02:47.8]} 10... Qa5 {[%clk 0:02:44.1]} 11. Rd5
{[%clk 0:02:36.6]} 11... Qc7 {[%clk 0:02:32.4]} 12. Nb5 {[%clk 0:02:34.5]} 12...
Qb8 {[%clk 0:02:32]} 13. h4 {[%clk 0:02:19.3]} 13... h5 {[%clk 0:02:27.1]} 14.
Ng5 {[%clk 0:02:16.3]} 14... a6 {[%clk 0:02:25.6]} 15. Na3 {[%clk 0:02:16.2]}
15... b5 {[%clk 0:02:17.8]} 16. c4 {[%clk 0:02:09.1]} 16... Nxg5 {[%clk
0:02:12.8]} 17. hxg5 {[%clk 0:02:08.6]} 17... e6 {[%clk 0:02:12.4]} 18. Rd2
{[%clk 0:01:57.4]} 18... b4 {[%clk 0:02:10.9]} 19. Nc2 {[%clk 0:01:55.8]} 19...
Bxe5 {[%clk 0:02:11.4]} 20. Bxe5 {[%clk 0:01:53.9]} 20... Qxe5 {[%clk
0:02:12.3]} 21. Qxe5 {[%clk 0:01:53.5]} 21... Nxe5 {[%clk 0:02:13.2]} 22. Nxb4
{[%clk 0:01:52.8]} 22... Bb7 {[%clk 0:02:13.6]} 23. f3 {[%clk 0:01:46.9]} 23...
Ke7 {[%clk 0:02:13.3]} 24. Be2 {[%clk 0:01:45.2]} 24... a5 {[%clk 0:02:13.5]}
25. Nc2 {[%clk 0:01:44.6]} 25... Rhc8 {[%clk 0:02:06.6]} 26. Rhd1 {[%clk
0:01:43.5]} 26... Rc7 {[%clk 0:02:03.6]} 27. Kb2 {[%clk 0:01:39.1]} 27... a4
{[%clk 0:02:03.3]} 28. f4 {[%clk 0:01:33]} 28... axb3 {[%clk 0:02:01.3]} 29.
axb3 {[%clk 0:01:33]} 29... Nc6 {[%clk 0:02:01.7]} 30. Bf3 {[%clk 0:01:31.9]}
30... Rb8 {[%clk 0:01:58.1]} 31. Kc3 {[%clk 0:01:28.3]} 31... Na5 {[%clk
0:01:57.7]} 32. Nd4 {[%clk 0:01:14.4]} 32... Bxf3 {[%clk 0:01:49.3]} 33. gxf3
{[%clk 0:01:15.3]} 33... d5 {[%clk 0:01:49.6]} 34. Ra1 {[%clk 0:01:06.7]} 34...
Nxb3 {[%clk 0:01:46.2]} 35. Nxb3 {[%clk 0:01:02.6]} 35... Rxc4+ {[%clk
0:01:46.6]} 36. Kb2 {[%clk 0:01:01.4]} 36... Rxf4 {[%clk 0:01:47.1]} 37. Rd3
{[%clk 0:00:59.6]} 37... h4 {[%clk 0:01:46.8]} 38. Kc3 {[%clk 0:00:50.4]} 38...
Rc4+ {[%clk 0:01:43.8]} 39. Kd2 {[%clk 0:00:50]} 39... Kf8 {[%clk 0:01:43.5]}
40. Rh1 {[%clk 0:00:45.1]} 40... Kg7 {[%clk 0:01:41.5]} 41. Nd4 {[%clk
0:00:43.4]} 41... e5 {[%clk 0:01:35.8]} 42. Ne2 {[%clk 0:00:27.6]} 42... Rb2+
{[%clk 0:01:29.2]} 43. Ke3 {[%clk 0:00:26.7]} 43... Rcc2 {[%clk 0:01:25.4]} 44.
Re1 {[%clk 0:00:14.9]} 44... d4+ {[%clk 0:01:20.2]} 45. Kf2 {[%clk 0:00:14.5]}
45... h3 {[%clk 0:01:20.8]} 46. f4 {[%clk 0:00:13.7]} 46... h2 {[%clk
0:01:19.3]} 47. Rh3 {[%clk 0:00:13.5]} 47... d3 {[%clk 0:01:19.4]} 48. Rxh2
{[%clk 0:00:12.7]} 48... Rxe2+ {[%clk 0:01:19.4]} 49. Rxe2 {[%clk 0:00:12.8]}
49... Rxe2+ {[%clk 0:01:20.3]} 0-1

[Event "*** Titled Tuesday Blitz"]
[Site "Chess.com"]
[Date "2021.04.27"]
[Round "1"]
[White "NiranjanNavalgund"]
[Black "ChristopherYoo"]
[Result "1-0"]
[WhiteElo "2479"]
[BlackElo "2938"]
[TimeControl "180+1"]
[EndTime "10:06:36 PDT"]
[Termination "NiranjanNavalgund won on time"]

1. e4 {[%clk 0:03:00]} 1... c5 {[%clk 0:02:53.9]} 2. d4 {[%clk 0:02:59.3]} 2...
cxd4 {[%clk 0:02:52.9]} 3. c3 {[%clk 0:02:59.9]} 3... dxc3 {[%clk 0:02:52.1]} 4.
Nf3 {[%clk 0:03:00.3]} 4... Nc6 {[%clk 0:02:48.4]} 5. Bc4 {[%clk 0:03:00.7]}
5... d6 {[%clk 0:02:48.4]} 6. O-O {[%clk 0:02:59.3]} 6... e6 {[%clk 0:02:46.2]}
7. Nxc3 {[%clk 0:02:59]} 7... a6 {[%clk 0:02:46.3]} 8. Bg5 {[%clk 0:02:57.1]}
8... Nf6 {[%clk 0:02:33.5]} 9. Qe2 {[%clk 0:02:56.8]} 9... Be7 {[%clk
0:02:32.1]} 10. Rfd1 {[%clk 0:02:53.1]} 10... Qc7 {[%clk 0:02:31.2]} 11. Rac1
{[%clk 0:02:46.1]} 11... O-O {[%clk 0:02:24.6]} 12. b4 {[%clk 0:02:37.6]} 12...
Ng4 {[%clk 0:02:19.5]} 13. Bf4 {[%clk 0:02:32.4]} 13... Nge5 {[%clk 0:02:16.4]}
14. Bb3 {[%clk 0:02:31.3]} 14... Qb8 {[%clk 0:02:00.3]} 15. a3 {[%clk
0:02:23.7]} 15... Bf6 {[%clk 0:01:50.3]} 16. Be3 {[%clk 0:02:13.3]} 16... Nxf3+
{[%clk 0:01:23.4]} 17. Qxf3 {[%clk 0:02:11.7]} 17... Bd7 {[%clk 0:01:21.4]} 18.
Qg3 {[%clk 0:02:06.9]} 18... Be5 {[%clk 0:01:01.8]} 19. f4 {[%clk 0:02:04.3]}
19... Bxc3 {[%clk 0:01:01.5]} 20. Rxc3 {[%clk 0:02:03.5]} 20... Ne7 {[%clk
0:00:41.3]} 21. Bb6 {[%clk 0:01:54.8]} 21... Rc8 {[%clk 0:00:39.9]} 22. Rcd3
{[%clk 0:01:53.1]} 22... d5 {[%clk 0:00:33.6]} 23. exd5 {[%clk 0:01:48.1]} 23...
exd5 {[%clk 0:00:32.1]} 24. Bxd5 {[%clk 0:01:47.3]} 24... Bf5 {[%clk 0:00:30.3]}
25. R3d2 {[%clk 0:01:42.2]} 25... Bg6 {[%clk 0:00:22.5]} 26. Ba2 {[%clk
0:01:38.6]} 26... Nf5 {[%clk 0:00:21.9]} 27. Qf3 {[%clk 0:01:35.4]} 27... Re8
{[%clk 0:00:04.7]} 28. Rd7 {[%clk 0:01:31.8]} 28... Qc8 {[%clk 0:00:03.8]} 29.
Rc7 {[%clk 0:01:29.7]} 29... Qb8 {[%clk 0:00:03.8]} 30. Rdd7 {[%clk 0:01:27.6]}
30... Re1+ {[%clk 0:00:02.2]} 31. Kf2 {[%clk 0:01:27.5]} 31... Qe8 {[%clk
0:00:01.9]} 32. Rxf7 {[%clk 0:01:20.4]} 32... Ra1 {[%clk 0:00:01.9]} 33. Rxg7+
{[%clk 0:00:48]} 33... Kh8 {[%clk 0:00:01.9]} 34. Rxh7+ {[%clk 0:00:48.1]} 1-0

[Event "*** Titled Tuesday Blitz"]
[Site "Chess.com"]
[Date "2021.04.27"]
[Round "1"]
[White "Oleksandr_Bortnyk"]
[Black "SHIVACalypso"]
[Result "1-0"]
[WhiteElo "2958"]
[BlackElo "2464"]
[TimeControl "180+1"]
[EndTime "10:06:37 PDT"]
[Termination "Oleksandr_Bortnyk won by resignation"]

1. e4 {[%clk 0:02:53]} 1... e6 {[%clk 0:02:59.7]} 2. d4 {[%clk 0:02:50.5]} 2...
d5 {[%clk 0:02:58.4]} 3. Nc3 {[%clk 0:02:50.4]} 3... Nf6 {[%clk 0:02:57.9]} 4.
Bg5 {[%clk 0:02:50.3]} 4... dxe4 {[%clk 0:02:56.7]} 5. Nxe4 {[%clk 0:02:51.2]}
5... Be7 {[%clk 0:02:56.7]} 6. Bxf6 {[%clk 0:02:50.9]} 6... gxf6 {[%clk
0:02:56.1]} 7. Nf3 {[%clk 0:02:50.6]} 7... f5 {[%clk 0:02:56.4]} 8. Nc3 {[%clk
0:02:50.4]} 8... a6 {[%clk 0:02:55.4]} 9. Qd3 {[%clk 0:02:49]} 9... b5 {[%clk
0:02:51.6]} 10. O-O-O {[%clk 0:02:48.6]} 10... Qd6 {[%clk 0:02:51.3]} 11. Qe3
{[%clk 0:02:32.5]} 11... Nd7 {[%clk 0:02:50.4]} 12. Bd3 {[%clk 0:02:22.2]} 12...
Bb7 {[%clk 0:02:27.8]} 13. d5 {[%clk 0:02:21.9]} 13... Bxd5 {[%clk 0:02:17.9]}
14. Bxf5 {[%clk 0:02:12.5]} 14... c6 {[%clk 0:02:09.1]} 15. Nxd5 {[%clk
0:02:11.2]} 15... cxd5 {[%clk 0:02:08.2]} 16. Rhe1 {[%clk 0:02:12.1]} 16...
O-O-O {[%clk 0:02:03]} 17. Nd4 {[%clk 0:02:02.8]} 17... Bf6 {[%clk 0:01:55.9]}
18. Bh3 {[%clk 0:01:55.4]} 18... Nc5 {[%clk 0:01:50.8]} 19. g3 {[%clk
0:01:42.9]} 19... Kb7 {[%clk 0:01:33.4]} 20. f4 {[%clk 0:01:42.1]} 20... Ne4
{[%clk 0:01:18.4]} 21. Bg2 {[%clk 0:01:39.7]} 21... Bxd4 {[%clk 0:01:13]} 22.
Qxd4 {[%clk 0:01:31.8]} 22... f5 {[%clk 0:01:13.5]} 23. Bxe4 {[%clk 0:01:32.1]}
23... fxe4 {[%clk 0:01:13.9]} 24. Rxe4 {[%clk 0:01:32.6]} 24... dxe4 {[%clk
0:00:57.9]} 25. Qxd6 {[%clk 0:01:33.5]} 25... Rxd6 {[%clk 0:00:58.6]} 26. Rxd6
{[%clk 0:01:34.4]} 26... Re8 {[%clk 0:00:59]} 27. Rd4 {[%clk 0:01:34.4]} 27...
Kc6 {[%clk 0:00:57.3]} 28. Rxe4 {[%clk 0:01:35.3]} 28... Kd5 {[%clk 0:00:57.9]}
29. Re5+ {[%clk 0:01:35.4]} 29... Kd6 {[%clk 0:00:55.9]} 30. Rh5 {[%clk
0:01:35.5]} 30... Re7 {[%clk 0:00:55.7]} 31. c3 {[%clk 0:01:36.1]} 31... Rf7
{[%clk 0:00:54.7]} 32. Kc2 {[%clk 0:01:36.6]} 32... Rc7 {[%clk 0:00:53]} 33. b3
{[%clk 0:01:36.3]} 33... Rb7 {[%clk 0:00:39.1]} 34. c4 {[%clk 0:01:33.4]} 34...
bxc4 {[%clk 0:00:38.2]} 35. bxc4 {[%clk 0:01:34.3]} 35... Rb4 {[%clk 0:00:36]}
36. Kc3 {[%clk 0:01:33.2]} 36... Rb7 {[%clk 0:00:36.1]} 37. a4 {[%clk
0:01:28.5]} 37... Kc6 {[%clk 0:00:17.9]} 38. Rh6 {[%clk 0:01:26.8]} 38... Kd6
{[%clk 0:00:11.6]} 39. f5 {[%clk 0:01:26.8]} 39... Rb1 {[%clk 0:00:12.2]} 40.
Rxe6+ {[%clk 0:01:25.6]} 40... Kd7 {[%clk 0:00:12.6]} 41. Rxa6 {[%clk
0:01:25.8]} 41... Rc1+ {[%clk 0:00:12.1]} 42. Kd4 {[%clk 0:01:26]} 42... Rf1
{[%clk 0:00:12.7]} 43. Ke5 {[%clk 0:01:21.5]} 43... Re1+ {[%clk 0:00:11.8]} 44.
Kf6 {[%clk 0:01:20.5]} 44... h5 {[%clk 0:00:12.7]} 45. Ra7+ {[%clk 0:01:16.8]}
45... Ke8 {[%clk 0:00:12.3]} 46. Rh7 {[%clk 0:01:17.7]} 46... h4 {[%clk
0:00:11.9]} 47. Rh8+ {[%clk 0:01:17]} 47... Kd7 {[%clk 0:00:11.9]} 48. Rxh4
{[%clk 0:01:17.9]} 48... Kc6 {[%clk 0:00:08.7]} 49. Kg7 {[%clk 0:01:16.1]} 49...
Rf1 {[%clk 0:00:08.5]} 50. f6 {[%clk 0:01:16.5]} 1-0

[Event "*** Titled Tuesday Blitz"]
[Site "Chess.com"]
[Date "2021.04.27"]
[Round "1"]
[White "Sjakkerntobi"]
[Black "jacky72"]
[Result "0-1"]
[WhiteElo "2374"]
[BlackElo "2710"]
[TimeControl "180+1"]
[EndTime "10:06:37 PDT"]
[Termination "jacky72 won on time"]

1. e4 {[%clk 0:02:58.9]} 1... e5 {[%clk 0:02:58]} 2. Nf3 {[%clk 0:02:58.3]} 2...
Nc6 {[%clk 0:02:57.3]} 3. Bb5 {[%clk 0:02:58.6]} 3... a6 {[%clk 0:02:57.7]} 4.
Ba4 {[%clk 0:02:57.7]} 4... d6 {[%clk 0:02:58.6]} 5. c3 {[%clk 0:02:53.6]} 5...
Bd7 {[%clk 0:02:58.9]} 6. O-O {[%clk 0:02:52.5]} 6... g6 {[%clk 0:02:57.1]} 7.
d4 {[%clk 0:02:51.6]} 7... Bg7 {[%clk 0:02:55.8]} 8. d5 {[%clk 0:02:51.6]} 8...
Nce7 {[%clk 0:02:54.6]} 9. Bxd7+ {[%clk 0:02:52.5]} 9... Qxd7 {[%clk 0:02:54.8]}
10. c4 {[%clk 0:02:53.4]} 10... h6 {[%clk 0:02:55.4]} 11. Nc3 {[%clk 0:02:54.2]}
11... f5 {[%clk 0:02:55.9]} 12. Ne1 {[%clk 0:02:45.4]} 12... f4 {[%clk
0:02:55.1]} 13. Nd3 {[%clk 0:02:44.5]} 13... Nf6 {[%clk 0:02:55.5]} 14. Bd2
{[%clk 0:02:36.4]} 14... g5 {[%clk 0:02:54.9]} 15. b4 {[%clk 0:02:35.7]} 15...
g4 {[%clk 0:02:54.6]} 16. f3 {[%clk 0:02:34.4]} 16... h5 {[%clk 0:02:53.5]} 17.
c5 {[%clk 0:02:33.7]} 17... O-O {[%clk 0:02:52.7]} 18. Qb3 {[%clk 0:02:23.5]}
18... Kh8 {[%clk 0:02:45.3]} 19. cxd6 {[%clk 0:02:07.9]} 19... cxd6 {[%clk
0:02:44.1]} 20. b5 {[%clk 0:02:08.5]} 20... Rg8 {[%clk 0:02:33.3]} 21. Kh1
{[%clk 0:02:01.9]} 21... Bh6 {[%clk 0:02:32.1]} 22. Rab1 {[%clk 0:02:00.9]}
22... h4 {[%clk 0:02:31.9]} 23. bxa6 {[%clk 0:01:48]} 23... bxa6 {[%clk
0:02:31.7]} 24. Qb7 {[%clk 0:01:45.3]} 24... Qe8 {[%clk 0:02:32.1]} 25. fxg4
{[%clk 0:01:26.5]} 25... Nxg4 {[%clk 0:02:27.8]} 26. h3 {[%clk 0:01:26]} 26...
Nf6 {[%clk 0:02:15.5]} 27. Be1 {[%clk 0:01:07.6]} 27... Nh5 {[%clk 0:01:58.7]}
28. Bxh4 {[%clk 0:00:52.3]} 28... Ng3+ {[%clk 0:01:56.5]} 29. Bxg3 {[%clk
0:00:51.7]} 29... Rxg3 {[%clk 0:01:57.4]} 30. Rbd1 {[%clk 0:00:29.6]} 30... Rc8
{[%clk 0:01:36.6]} 31. Ne2 {[%clk 0:00:29.3]} 31... Re3 {[%clk 0:01:34.1]} 32.
Ng1 {[%clk 0:00:21.8]} 32... Rc2 {[%clk 0:01:33.6]} 33. Rc1 {[%clk 0:00:19.5]}
33... Rd2 {[%clk 0:01:30]} 34. Nf2 {[%clk 0:00:17.6]} 34... Bf8 {[%clk
0:01:17.1]} 35. Nf3 {[%clk 0:00:17.4]} 35... Rxf3 {[%clk 0:01:08.1]} 36. gxf3
{[%clk 0:00:17]} 36... Qh5 {[%clk 0:01:09]} 37. Rc3 {[%clk 0:00:12.4]} 37... Qh4
{[%clk 0:01:01.8]} 38. Qb8 {[%clk 0:00:08.9]} 38... Kg7 {[%clk 0:01:01.5]} 39.
Rg1+ {[%clk 0:00:04.1]} 39... Kf7 {[%clk 0:01:01.6]} 0-1

[Event "*** Titled Tuesday Blitz"]
[Site "Chess.com"]
[Date "2021.04.27"]
[Round "1"]
[White "InvisibleWarrior2252"]
[Black "Grineva_Marianna"]
[Result "1-0"]
[WhiteElo "2561"]
[BlackElo "2226"]
[TimeControl "180+1"]
[EndTime "10:06:37 PDT"]
[Termination "InvisibleWarrior2252 won by resignation"]

1. e4 {[%clk 0:03:00.9]} 1... c5 {[%clk 0:02:59.3]} 2. Nf3 {[%clk 0:03:00.1]}
2... d6 {[%clk 0:02:59.7]} 3. d4 {[%clk 0:03:00]} 3... cxd4 {[%clk 0:03:00.6]}
4. Nxd4 {[%clk 0:03:00.6]} 4... Nf6 {[%clk 0:03:01.2]} 5. Nc3 {[%clk 0:02:57.8]}
5... g6 {[%clk 0:03:01.6]} 6. h3 {[%clk 0:02:56.5]} 6... Bg7 {[%clk 0:03:01.4]}
7. g4 {[%clk 0:02:49.2]} 7... Nc6 {[%clk 0:02:59.8]} 8. Be3 {[%clk 0:02:48]}
8... Bd7 {[%clk 0:02:57.9]} 9. Bg2 {[%clk 0:02:46.7]} 9... Qa5 {[%clk
0:02:57.6]} 10. O-O {[%clk 0:02:46.3]} 10... O-O {[%clk 0:02:55.6]} 11. Qd2
{[%clk 0:02:43.9]} 11... Rac8 {[%clk 0:02:38.8]} 12. Rac1 {[%clk 0:02:39.7]}
12... a6 {[%clk 0:02:13.7]} 13. Nxc6 {[%clk 0:02:32.2]} 13... Bxc6 {[%clk
0:02:01.6]} 14. Nd5 {[%clk 0:02:27.1]} 14... Qd8 {[%clk 0:02:01.6]} 15. Bb6
{[%clk 0:02:13.7]} 15... Qd7 {[%clk 0:01:58.5]} 16. c4 {[%clk 0:02:11.1]} 16...
e6 {[%clk 0:01:49.3]} 17. Nxf6+ {[%clk 0:02:07]} 17... Bxf6 {[%clk 0:01:50.2]}
18. Rfd1 {[%clk 0:02:07]} 18... Be7 {[%clk 0:01:45.3]} 19. c5 {[%clk 0:02:03.6]}
19... d5 {[%clk 0:01:33.8]} 20. exd5 {[%clk 0:02:03.6]} 20... exd5 {[%clk
0:01:34.3]} 21. Bxd5 {[%clk 0:02:03]} 21... Bxd5 {[%clk 0:01:34.2]} 22. Qxd5
{[%clk 0:02:03.9]} 22... Qb5 {[%clk 0:01:28.6]} 23. Qd7 {[%clk 0:01:33.6]} 23...
Bf6 {[%clk 0:00:45.7]} 24. Qxb5 {[%clk 0:01:30.4]} 24... axb5 {[%clk 0:00:46.6]}
25. b4 {[%clk 0:01:30.9]} 25... Rfe8 {[%clk 0:00:46.8]} 26. Rc2 {[%clk
0:01:24.9]} 26... Re4 {[%clk 0:00:45.7]} 27. a3 {[%clk 0:01:22.5]} 27... Ra8
{[%clk 0:00:45.9]} 28. Ba5 {[%clk 0:01:13.3]} 28... Kg7 {[%clk 0:00:42.9]} 29.
Rd7 {[%clk 0:01:11.2]} 29... Re1+ {[%clk 0:00:37.1]} 30. Kg2 {[%clk 0:01:10.5]}
30... Ra1 {[%clk 0:00:25.3]} 31. Rxb7 {[%clk 0:01:10]} 31... Rxa3 {[%clk
0:00:25.7]} 32. c6 {[%clk 0:01:10.5]} 32... Rc8 {[%clk 0:00:23.3]} 33. c7 {[%clk
0:01:10]} 33... Be5 {[%clk 0:00:16.3]} 34. Rxb5 {[%clk 0:01:09.8]} 34... Bd6
{[%clk 0:00:15.3]} 35. Rd5 {[%clk 0:01:09.4]} 35... Bf4 {[%clk 0:00:14.7]} 36.
Rd8 {[%clk 0:01:08.8]} 36... Rxa5 {[%clk 0:00:13]} 37. Rxc8 {[%clk 0:01:04.4]}
37... Ra7 {[%clk 0:00:11.8]} 38. Rg8+ {[%clk 0:01:03.8]} 38... Kxg8 {[%clk
0:00:10.5]} 39. c8=Q+ {[%clk 0:01:04.7]} 39... Kg7 {[%clk 0:00:10.9]} 40. Qc5
{[%clk 0:01:04.7]} 40... Rc7 {[%clk 0:00:10.5]} 41. Qxc7 {[%clk 0:01:03.8]}
41... Bxc7 {[%clk 0:00:09.7]} 42. Rxc7 {[%clk 0:01:04.7]} 1-0

[Event "*** Titled Tuesday Blitz"]
[Site "Chess.com"]
[Date "2021.04.27"]
[Round "1"]
[White "OK97"]
[Black "Valeron87"]
[Result "1-0"]
[WhiteElo "2738"]
[BlackElo "2401"]
[TimeControl "180+1"]
[EndTime "10:06:41 PDT"]
[Termination "OK97 won by resignation"]

1. c4 {[%clk 0:03:00.9]} 1... e5 {[%clk 0:02:59]} 2. Nc3 {[%clk 0:02:59.9]} 2...
d6 {[%clk 0:02:58]} 3. e3 {[%clk 0:02:54.3]} 3... f5 {[%clk 0:02:57.9]} 4. d4
{[%clk 0:02:52.2]} 4... Be7 {[%clk 0:02:55.7]} 5. Nd5 {[%clk 0:02:34.8]} 5...
Nf6 {[%clk 0:02:50]} 6. Nxe7 {[%clk 0:02:23.3]} 6... Qxe7 {[%clk 0:02:50.9]} 7.
Nf3 {[%clk 0:02:23.7]} 7... e4 {[%clk 0:02:46.2]} 8. Nd2 {[%clk 0:02:19.6]} 8...
c5 {[%clk 0:02:45.7]} 9. Nb1 {[%clk 0:02:12.1]} 9... Nc6 {[%clk 0:02:44.5]} 10.
Nc3 {[%clk 0:02:12.4]} 10... O-O {[%clk 0:02:43.7]} 11. Be2 {[%clk 0:02:11.7]}
11... Kh8 {[%clk 0:02:27.4]} 12. b3 {[%clk 0:02:03.9]} 12... Bd7 {[%clk
0:02:14.9]} 13. g3 {[%clk 0:01:52.1]} 13... Rad8 {[%clk 0:01:37.9]} 14. h4
{[%clk 0:01:48.5]} 14... Ng4 {[%clk 0:01:33.9]} 15. Nd5 {[%clk 0:01:47]} 15...
Qf7 {[%clk 0:01:24.8]} 16. Bb2 {[%clk 0:01:47.1]} 16... cxd4 {[%clk 0:01:04.6]}
17. Bxd4 {[%clk 0:01:42.4]} 17... Be6 {[%clk 0:00:52.7]} 18. Nf4 {[%clk
0:01:36.3]} 18... d5 {[%clk 0:00:43.2]} 19. c5 {[%clk 0:01:29.8]} 19... Qe7
{[%clk 0:00:33.6]} 20. h5 {[%clk 0:01:20.2]} 20... Kg8 {[%clk 0:00:31.5]} 21.
Qd2 {[%clk 0:01:13.2]} 21... Rc8 {[%clk 0:00:21.6]} 22. b4 {[%clk 0:01:00.1]}
22... b6 {[%clk 0:00:19.3]} 23. Rc1 {[%clk 0:00:45.3]} 23... Nxd4 {[%clk
0:00:19.2]} 24. Qxd4 {[%clk 0:00:45.9]} 24... bxc5 {[%clk 0:00:19.5]} 25. bxc5
{[%clk 0:00:46]} 25... Rb8 {[%clk 0:00:17.9]} 26. Bxg4 {[%clk 0:00:43.2]} 26...
fxg4 {[%clk 0:00:17.1]} 27. Qe5 {[%clk 0:00:42.5]} 27... Rfe8 {[%clk 0:00:15.6]}
28. h6 {[%clk 0:00:37.6]} 28... g6 {[%clk 0:00:11.1]} 29. Nxe6 {[%clk
0:00:37.3]} 29... Rb7 {[%clk 0:00:07.7]} 30. Qg7+ {[%clk 0:00:35.2]} 30... Qxg7
{[%clk 0:00:07.8]} 31. Nxg7 {[%clk 0:00:36.1]} 31... Rf8 {[%clk 0:00:08.2]} 32.
O-O {[%clk 0:00:35]} 1-0

[Event "*** Titled Tuesday Blitz"]
[Site "Chess.com"]
[Date "2021.04.27"]
[Round "1"]
[White "Irishchessman16"]
[Black "Fighterman91"]
[Result "0-1"]
[WhiteElo "2291"]
[BlackElo "2617"]
[TimeControl "180+1"]
[EndTime "10:06:41 PDT"]
[Termination "Fighterman91 won by resignation"]

1. e4 {[%clk 0:03:00.4]} 1... c5 {[%clk 0:02:59.4]} 2. Nf3 {[%clk 0:02:59.7]}
2... Nc6 {[%clk 0:02:57.9]} 3. Bb5 {[%clk 0:02:58.6]} 3... e6 {[%clk 0:02:57.4]}
4. O-O {[%clk 0:02:56.9]} 4... Nge7 {[%clk 0:02:57.3]} 5. Re1 {[%clk 0:02:49.1]}
5... Nd4 {[%clk 0:02:49.3]} 6. Nxd4 {[%clk 0:02:28.2]} 6... cxd4 {[%clk
0:02:50.2]} 7. c3 {[%clk 0:02:28.6]} 7... a6 {[%clk 0:02:49.4]} 8. Bd3 {[%clk
0:02:21.5]} 8... Nc6 {[%clk 0:02:49.5]} 9. e5 {[%clk 0:02:21.5]} 9... d6 {[%clk
0:02:22.1]} 10. exd6 {[%clk 0:02:16.1]} 10... Bxd6 {[%clk 0:02:21.1]} 11. Be4
{[%clk 0:02:10.4]} 11... O-O {[%clk 0:02:17.9]} 12. d3 {[%clk 0:02:04.7]} 12...
Qf6 {[%clk 0:02:07.6]} 13. Qh5 {[%clk 0:01:57]} 13... g6 {[%clk 0:02:04.5]} 14.
Qh6 {[%clk 0:01:18.7]} 14... Bd7 {[%clk 0:01:26]} 15. Bg5 {[%clk 0:01:13.9]}
15... Qh8 {[%clk 0:01:22.3]} 16. Nd2 {[%clk 0:00:52.6]} 16... dxc3 {[%clk
0:00:54.6]} 17. bxc3 {[%clk 0:00:51.8]} 17... Be7 {[%clk 0:00:39.6]} 18. Bxe7
{[%clk 0:00:30.1]} 18... Nxe7 {[%clk 0:00:40.5]} 19. Bxb7 {[%clk 0:00:30.4]}
19... Ra7 {[%clk 0:00:41.1]} 20. Bf3 {[%clk 0:00:27.8]} 20... Qxc3 {[%clk
0:00:35.1]} 21. Ne4 {[%clk 0:00:26.8]} 21... Qg7 {[%clk 0:00:35.7]} 22. Qe3
{[%clk 0:00:24]} 22... Rc7 {[%clk 0:00:35.4]} 23. Qb6 {[%clk 0:00:23.1]} 23...
Nd5 {[%clk 0:00:35.1]} 24. Qd6 {[%clk 0:00:22.6]} 24... Bb5 {[%clk 0:00:30.8]}
25. Nc5 {[%clk 0:00:16.7]} 25... Rc6 {[%clk 0:00:26.8]} 26. Nxe6 {[%clk
0:00:06.5]} 26... Rxd6 {[%clk 0:00:26.2]} 27. Nxg7 {[%clk 0:00:06.8]} 27... Kxg7
{[%clk 0:00:27.1]} 0-1